fUSD/lending_fUSD_20260529
["ID","MTS","AMOUNT","RATE_DAILY","PERIOD"]
[423345470,1780065076000,-6580.74,0.000301,7]
[423345471,1780065076000,-3650.25,0.000301,7]
[423345469,1780065076000,-996.0,0.00030075,7]
[423345475,1780065076000,-364.57,0.0003013,15]
[423345474,1780065076000,-2486.17397066,0.0003013,120]
[423345476,1780065076000,-1734.22715031,0.0003013,30]
[423345449,1780065076000,-168.23998241,0.0003,120]
[423345473,1780065076000,-1377.30077492,0.0003013,120]
[423345459,1780065076000,-1000.0,0.0003,21]
[423345468,1780065076000,-1356.0,0.00030044,2]
[423345457,1780065076000,-200.0,0.0003,2]
[423345460,1780065076000,-172.0,0.0003,14]
[423345447,1780065076000,-312.12756278,0.0003,5]
[423345442,1780065076000,-166.0,0.0003,120]
[423345445,1780065076000,-526.76267861,0.0003,30]
[423345443,1780065076000,-1000.0,0.0003,2]
[423345452,1780065076000,-825.02878041,0.0003,120]
[423345454,1780065076000,-200.0,0.0003,2]
[423345450,1780065076000,-1030.64297803,0.0003,120]
[423345456,1780065076000,-160.0,0.0003,120]
[423345455,1780065076000,-650.0,0.0003,2]
[423345453,1780065076000,-1024.10465684,0.0003,38]
[423345462,1780065076000,-200.0,0.0003,2]
[423345451,1780065076000,-317.8981638,0.0003,120]
[423345458,1780065076000,-200.0,0.0003,2]
[423345461,1780065076000,-215.5484138,0.0003,10]
[423345495,1780065077000,-923.097563,0.0003013,7]
[423345501,1780065077000,-165.868311,0.0003013,7]
[423345496,1780065077000,-923.097563,0.0003013,7]
[423345497,1780065077000,-4101.394339,0.0003013,7]
[423345499,1780065077000,-4101.394339,0.0003013,7]
[423345500,1780065077000,-4101.394339,0.0003013,7]
[423345502,1780065077000,-151.0,0.0003013,7]
[423345512,1780065077000,-1000.0,0.00030136,43]
[423345507,1780065077000,-1080.085022,0.0003013,7]
[423345505,1780065077000,-1080.085022,0.0003013,7]
[423345514,1780065077000,-398.21415052,0.00030137,7]
[423345515,1780065077000,-1003.99,0.00030137,2]
[423345511,1780065077000,-347.02770364,0.00030135,120]
[423345508,1780065077000,-1080.085022,0.0003013,7]
[423345494,1780065077000,-899.662535,0.0003013,7]
[423345506,1780065077000,-1080.085022,0.0003013,7]
[423345503,1780065077000,-151.0,0.0003013,7]
[423345478,1780065077000,-3996.42206129,0.0003013,120]
[423345493,1780065077000,-923.097563,0.0003013,7]
[423345510,1780065077000,-151.0,0.0003013,7]
[423345481,1780065077000,-300.0,0.0003013,30]
[423345480,1780065077000,-307.26231511,0.0003013,120]
[423345479,1780065077000,-205.34319924,0.0003013,2]
[423345482,1780065077000,-302.20023713,0.0003013,2]
[423345486,1780065077000,-923.097563,0.0003013,7]
[423345484,1780065077000,-2000.0,0.0003013,2]
[423345485,1780065077000,-3141.402971,0.0003013,7]
[423345489,1780065077000,-899.662535,0.0003013,7]
[423345488,1780065077000,-3141.402971,0.0003013,7]
[423345487,1780065077000,-899.662535,0.0003013,7]
[423345483,1780065077000,-532522.03742642,0.0003013,7]
[423345491,1780065077000,-899.662535,0.0003013,7]
[423345492,1780065077000,-3141.402971,0.0003013,7]
[423345490,1780065077000,-3141.402971,0.0003013,7]
[423345504,1780065077000,-151.0,0.0003013,7]
[423345513,1780065077000,-199.10707526,0.00030137,7]
[423345498,1780065077000,-4101.394339,0.0003013,7]
[423345517,1780065077000,-300.0,0.00030137,2]
[423345535,1780065077000,-1600.0,0.00030311,120]
[423345537,1780065077000,-150.0,0.00030341,2]
[423345539,1780065077000,-600.0,0.00030411,120]
[423345540,1780065077000,-1545.0,0.00030525,7]
[423345542,1780065077000,-1545.0,0.00030525,7]
[423345544,1780065077000,-153.0,0.00030525,7]
[423345541,1780065077000,-1545.0,0.00030525,7]
[423345532,1780065077000,-7567.4,0.00030239,2]
[423345538,1780065077000,-1000.0,0.00030376,22]
[423345545,1780065077000,-153.0,0.00030525,7]
[423345547,1780065077000,-153.0,0.00030525,7]
[423345548,1780065077000,-1545.0,0.00030525,7]
[423345551,1780065077000,-491.02,0.00030663,14]
[423345549,1780065077000,-3190.23638862,0.00030585,120]
[423345550,1780065077000,-996.0,0.00030629,7]
[423345509,1780065077000,-151.0,0.0003013,7]
[423345543,1780065077000,-1545.0,0.00030525,7]
[423345533,1780065077000,-188.44606373,0.00030275,2]
[423345546,1780065077000,-153.0,0.00030525,7]
[423345534,1780065077000,-50339.39,0.000303,14]
[423345516,1780065077000,-300.0,0.00030137,2]
[423345531,1780065077000,-151.0,0.00030236,7]
[423345518,1780065077000,-173.0,0.00030137,2]
[423345524,1780065077000,-238.0,0.00030137,2]
[423345521,1780065077000,-277.0,0.00030137,2]
[423345523,1780065077000,-300.0,0.00030137,2]
[423345520,1780065077000,-300.0,0.00030137,2]
[423345522,1780065077000,-300.0,0.00030137,2]
[423345519,1780065077000,-300.0,0.00030137,2]
[423345527,1780065077000,-1671.57,0.000302,2]
[423345536,1780065077000,-292.5,0.00030329,2]
[423345530,1780065077000,-1071.36,0.00030217,120]
[423345526,1780065077000,-187.95218471,0.00030137,120]
[423345529,1780065077000,-207.93001677,0.000302,120]
[423345525,1780065077000,-1561.02,0.00030137,30]
[423345528,1780065077000,-15807.77177437,0.000302,2]
[423345589,1780065078000,-162.21557078,0.0003079,7]
[423345584,1780065078000,-495.86351786,0.0003079,7]
[423345588,1780065078000,-374.75419891,0.0003079,7]
[423345592,1780065078000,-159.42494355,0.0003079,7]
[423345586,1780065078000,-626.51077512,0.0003079,7]
[423345587,1780065078000,-486.11120137,0.0003079,7]
[423345590,1780065078000,-532.06035044,0.0003079,7]
[423345591,1780065078000,-275.68661596,0.0003079,7]
[423345583,1780065078000,-348.22935332,0.0003079,7]
[423345593,1780065078000,-477.26291166,0.0003079,7]
[423345582,1780065078000,-305.10758997,0.0003079,7]
[423345585,1780065078000,-484.55433987,0.0003079,7]
[423345605,1780065078000,-5486.0,0.00030802,30]
[423345599,1780065078000,-1658.0,0.00030802,30]
[423345600,1780065078000,-584.0,0.00030802,30]
[423345597,1780065078000,-250.0,0.000308,30]
[423345595,1780065078000,-152.41257321,0.0003079,7]
[423345603,1780065078000,-818.0,0.00030802,30]
[423345596,1780065078000,-616.70230738,0.0003079,7]
[423345601,1780065078000,-571.0,0.00030802,30]
[423345598,1780065078000,-879.0,0.00030802,30]
[423345602,1780065078000,-2696.0,0.00030802,30]
[423345604,1780065078000,-912.0,0.00030802,30]
[423345580,1780065078000,-475.86844961,0.0003079,7]
[423345606,1780065078000,-550.39980496,0.00030808,7]
[423345594,1780065078000,-559.30085767,0.0003079,7]
[423345573,1780065078000,-203.0969762,0.0003079,7]
[423345562,1780065078000,-245.72979678,0.0003079,7]
[423345574,1780065078000,-459.06794687,0.0003079,7]
[423345608,1780065078000,-525.68123528,0.00030814,7]
[423345558,1780065078000,-1000.0,0.00030785,47]
[423345553,1780065078000,-1124.0,0.00030695,5]
[423345555,1780065078000,-50339.39,0.000307,14]
[423345552,1780065078000,-10000.0,0.00030664,2]
[423345557,1780065078000,-1000.0,0.00030752,23]
[423345556,1780065078000,-7357.34,0.00030726,7]
[423345554,1780065078000,-3134.77144865,0.000307,120]
[423345561,1780065078000,-150.7777502,0.0003079,7]
[423345559,1780065078000,-865.25562702,0.0003079,7]
[423345563,1780065078000,-207.00428148,0.0003079,7]
[423345564,1780065078000,-505.50884792,0.0003079,7]
[423345576,1780065078000,-476.44659787,0.0003079,7]
[423345567,1780065078000,-530.49192663,0.0003079,7]
[423345568,1780065078000,-390.19591139,0.0003079,7]
[423345566,1780065078000,-352.94021178,0.0003079,7]
[423345569,1780065078000,-277.31540027,0.0003079,7]
[423345560,1780065078000,-573.35933622,0.0003079,7]
[423345570,1780065078000,-586.01240031,0.0003079,7]
[423345577,1780065078000,-337.38000991,0.0003079,7]
[423345571,1780065078000,-440.37684611,0.0003079,7]
[423345581,1780065078000,-597.32122579,0.0003079,7]
[423345579,1780065078000,-460.32393047,0.0003079,7]
[423345578,1780065078000,-620.38059766,0.0003079,5]
[423345572,1780065078000,-463.58137057,0.0003079,7]
[423345575,1780065078000,-228.99814346,0.0003079,7]
[423345565,1780065078000,-508.23205799,0.0003079,7]
[423345609,1780065078000,-602.11183564,0.00030814,7]
[423345638,1780065078000,-293.91397963,0.00030814,7]
[423345611,1780065078000,-521.46012054,0.00030814,7]
[423345650,1780065078000,-1027.08298476,0.00030814,7]
[423345643,1780065078000,-510.13948324,0.00030814,7]
[423345652,1780065078000,-352.0,0.00030814,30]
[423345642,1780065078000,-302.25343837,0.00030814,7]
[423345651,1780065078000,-1115.70776733,0.00030814,7]
[423345648,1780065078000,-493.00062437,0.00030814,7]
[423345644,1780065078000,-531.38066739,0.00030814,7]
[423345645,1780065078000,-568.2671043,0.00030814,7]
[423345649,1780065078000,-516.54138783,0.00030814,7]
[423345647,1780065078000,-155.22549886,0.00030814,7]
[423345646,1780065078000,-361.3334021,0.00030814,5]
[423345656,1780065078000,-231.39465645,0.00030832,2]
[423345641,1780065078000,-531.26675308,0.00030814,7]
[423345655,1780065078000,-878.0,0.00030823,30]
[423345654,1780065078000,-219.0,0.00030814,30]
[423345664,1780065078000,-456.85404581,0.0003085,7]
[423345657,1780065078000,-495.07104896,0.00030832,7]
[423345659,1780065078000,-599.10205717,0.00030832,7]
[423345658,1780065078000,-400.43133027,0.00030832,7]
[423345660,1780065078000,-563.2557031,0.00030832,7]
[423345663,1780065078000,-1637.64399571,0.0003084,2]
[423345662,1780065078000,-606.76483683,0.00030832,7]
[423345661,1780065078000,-591.43456747,0.00030832,7]
[423345666,1780065078000,-370.54361442,0.0003085,2]
[423345610,1780065078000,-616.67214822,0.00030814,7]
[423345667,1780065078000,-617.43178064,0.0003085,7]
[423345653,1780065078000,-334.0,0.00030814,30]
[423345639,1780065078000,-463.70757908,0.00030814,7]
[423345665,1780065078000,-348.95046792,0.0003085,7]
[423345635,1780065078000,-194.97431839,0.00030814,7]
[423345636,1780065078000,-220.71003072,0.00030814,7]
[423345614,1780065078000,-249.54806209,0.00030814,7]
[423345612,1780065078000,-201.40377158,0.00030814,7]
[423345613,1780065078000,-154.4990258,0.00030814,7]
[423345616,1780065078000,-292.23308746,0.00030814,7]
[423345615,1780065078000,-219.92388746,0.00030814,7]
[423345619,1780065078000,-162.99682541,0.00030814,7]
[423345617,1780065078000,-224.006469,0.00030814,7]
[423345620,1780065078000,-204.48231542,0.00030814,7]
[423345628,1780065078000,-600.14913374,0.00030814,7]
[423345618,1780065078000,-166.89255691,0.00030814,7]
[423345621,1780065078000,-280.93761709,0.00030814,2]
[423345622,1780065078000,-259.13241421,0.00030814,2]
[423345607,1780065078000,-151.0,0.0003081,7]
[423345627,1780065078000,-572.5892808,0.00030814,7]
[423345623,1780065078000,-293.88995501,0.00030814,2]
[423345634,1780065078000,-224.90378685,0.00030814,7]
[423345633,1780065078000,-528.05250412,0.00030814,2]
[423345632,1780065078000,-970.7384435,0.00030814,7]
[423345631,1780065078000,-154.37760921,0.00030814,7]
[423345637,1780065078000,-243.4795262,0.00030814,7]
[423345640,1780065078000,-152.29490688,0.00030814,7]
[423345630,1780065078000,-250.76218008,0.00030814,7]
[423345625,1780065078000,-480.64314393,0.00030814,7]
[423345626,1780065078000,-162.01615878,0.00030814,7]
[423345624,1780065078000,-458.13888085,0.00030814,7]
[423345629,1780065078000,-495.30518539,0.00030814,7]
[423345703,1780065079000,-215.51,0.00031,14]
[423345698,1780065079000,-1400.23,0.00030986,30]
[423345704,1780065079000,-701.86967386,0.00031,2]
[423345705,1780065079000,-283.61792291,0.00031,120]
[423345707,1780065079000,-209.09056759,0.00031,120]
[423345702,1780065079000,-1000.0,0.00031,120]
[423345706,1780065079000,-209.09056759,0.00031,120]
[423345696,1780065079000,-1400.23,0.00030978,30]
[423345690,1780065079000,-1400.23,0.00030961,30]
[423345709,1780065079000,-1400.23,0.00031002,30]
[423345699,1780065079000,-1400.23,0.0003099,30]
[423345712,1780065079000,-1400.23,0.00031014,30]
[423345701,1780065079000,-1400.23,0.00030998,30]
[423345708,1780065079000,-2500.0,0.00031,32]
[423345711,1780065079000,-1400.23,0.0003101,30]
[423345710,1780065079000,-1400.23,0.00031006,30]
[423345713,1780065079000,-1400.23,0.00031018,30]
[423345714,1780065079000,-1400.23,0.00031022,30]
[423345715,1780065079000,-1400.23,0.00031027,30]
[423345716,1780065079000,-1400.23,0.00031031,30]
[423345719,1780065079000,-1400.23,0.00031043,30]
[423345718,1780065079000,-1400.23,0.00031039,30]
[423345717,1780065079000,-1400.23,0.00031035,30]
[423345720,1780065079000,-1400.23,0.00031047,30]
[423345700,1780065079000,-1400.23,0.00030994,30]
[423345691,1780065079000,-1400.23,0.00030965,30]
[423345682,1780065079000,-1400.23,0.00030929,30]
[423345688,1780065079000,-1400.23,0.00030953,30]
[423345721,1780065079000,-1400.23,0.00031051,30]
[423345674,1780065079000,-1000.0,0.00030906,72]
[423345669,1780065079000,-531.04123617,0.0003085,7]
[423345672,1780065079000,-1400.23,0.000309,30]
[423345668,1780065079000,-165.50411573,0.0003085,7]
[423345670,1780065079000,-1371.12,0.00030884,15]
[423345673,1780065079000,-1400.23,0.00030904,30]
[423345671,1780065079000,-200.0,0.000309,11]
[423345677,1780065079000,-1400.23,0.00030916,30]
[423345678,1780065079000,-1400.23,0.0003092,30]
[423345675,1780065079000,-1400.23,0.00030908,30]
[423345679,1780065079000,-1000.0,0.00030923,13]
[423345676,1780065079000,-1400.23,0.00030912,30]
[423345681,1780065079000,-188.44606373,0.00030927,2]
[423345683,1780065079000,-1400.23,0.00030933,30]
[423345680,1780065079000,-1400.23,0.00030924,30]
[423345684,1780065079000,-1400.23,0.00030937,30]
[423345685,1780065079000,-1400.23,0.00030941,30]
[423345697,1780065079000,-1400.23,0.00030982,30]
[423345687,1780065079000,-1400.23,0.00030949,30]
[423345694,1780065079000,-789.412216,0.00030974,11]
[423345692,1780065079000,-1400.23,0.00030969,30]
[423345686,1780065079000,-1400.23,0.00030945,30]
[423345695,1780065079000,-807.52288603,0.00030974,11]
[423345689,1780065079000,-1400.23,0.00030957,30]
[423345693,1780065079000,-1400.23,0.00030973,30]
[423345724,1780065079000,-1400.23,0.00031063,30]
[423345751,1780065079000,-151.0,0.00031372,7]
[423345725,1780065079000,-1400.23,0.00031067,30]
[423345756,1780065079000,-266.812185,0.00031384,7]
[423345766,1780065079000,-491.45959357,0.00031384,7]
[423345765,1780065079000,-160.70734615,0.00031384,7]
[423345757,1780065079000,-266.812185,0.00031384,7]
[423345755,1780065079000,-2318.0,0.00031375,3]
[423345762,1780065079000,-325.99365082,0.00031384,7]
[423345763,1780065079000,-160.42531756,0.00031384,7]
[423345764,1780065079000,-160.42531152,0.00031384,7]
[423345760,1780065079000,-165.12243611,0.00031384,7]
[423345758,1780065079000,-266.812185,0.00031384,7]
[423345759,1780065079000,-266.812185,0.00031384,7]
[423345752,1780065079000,-1590.0,0.00031375,3]
[423345761,1780065079000,-1153.67416936,0.00031384,7]
[423345770,1780065079000,-529.41031767,0.00031384,7]
[423345769,1780065079000,-677.64274398,0.00031384,7]
[423345771,1780065079000,-173.0522868,0.00031384,7]
[423345772,1780065079000,-707.32256884,0.00031384,7]
[423345773,1780065079000,-585.29386708,0.00031384,7]
[423345768,1780065079000,-674.01179723,0.00031384,7]
[423345777,1780065079000,-159.34080076,0.00031384,7]
[423345776,1780065079000,-163.29326204,0.00031384,7]
[423345774,1780065079000,-554.63080055,0.00031384,7]
[423345775,1780065079000,-166.39104305,0.00031384,7]
[423345778,1780065079000,-781.34986708,0.00031384,7]
[423345767,1780065079000,-414.00856295,0.00031384,7]
[423345749,1780065079000,-1590.0,0.00031351,3]
[423345723,1780065079000,-1400.23,0.00031059,30]
[423345754,1780065079000,-2318.0,0.00031375,3]
[423345722,1780065079000,-1400.23,0.00031055,30]
[423345729,1780065079000,-1400.23,0.00031084,30]
[423345731,1780065079000,-1400.23,0.00031092,30]
[423345726,1780065079000,-1400.23,0.00031071,30]
[423345732,1780065079000,-1400.23,0.00031096,30]
[423345727,1780065079000,-1400.23,0.00031076,30]
[423345728,1780065079000,-1400.23,0.0003108,30]
[423345748,1780065079000,-2318.0,0.00031351,3]
[423345733,1780065079000,-162.408305,0.0003116,7]
[423345743,1780065079000,-151.0,0.00031233,7]
[423345734,1780065079000,-162.408305,0.0003116,7]
[423345741,1780065079000,-500.0,0.00031233,7]
[423345730,1780065079000,-1400.23,0.00031088,30]
[423345739,1780065079000,-996.0,0.00031184,8]
[423345735,1780065079000,-162.408305,0.0003116,7]
[423345750,1780065079000,-182.0,0.00031355,120]
[423345746,1780065079000,-1011.06,0.00031296,7]
[423345747,1780065079000,-1063.54,0.00031296,7]
[423345744,1780065079000,-183.3,0.00031274,120]
[423345753,1780065079000,-1590.0,0.00031375,3]
[423345742,1780065079000,-151.0,0.00031233,7]
[423345740,1780065079000,-557.19,0.000312,7]
[423345736,1780065079000,-162.408305,0.0003116,7]
[423345737,1780065079000,-3000.0,0.0003116,60]
[423345738,1780065079000,-1000.0,0.00031183,8]
[423345745,1780065079000,-1030.94,0.00031296,7]
[423345820,1780065080000,-348.99946378,0.000314,30]
[423345813,1780065080000,-636.35054888,0.00031384,7]
[423345812,1780065080000,-745.73447689,0.00031384,7]
[423345815,1780065080000,-2318.0,0.000314,3]
[423345817,1780065080000,-1590.0,0.000314,3]
[423345818,1780065080000,-1590.0,0.000314,3]
[423345810,1780065080000,-551.37323193,0.00031384,7]
[423345807,1780065080000,-304.82514643,0.00031384,7]
[423345806,1780065080000,-562.13129836,0.00031384,7]
[423345816,1780065080000,-1590.0,0.000314,3]
[423345814,1780065080000,-822.26974318,0.00031384,7]
[423345829,1780065080000,-160.42531587,0.00031408,7]
[423345811,1780065080000,-318.84988709,0.00031384,7]
[423345822,1780065080000,-733.86640662,0.00031402,7]
[423345825,1780065080000,-822.22953096,0.00031408,7]
[423345828,1780065080000,-348.934414,0.00031408,7]
[423345821,1780065080000,-1590.0,0.000314,3]
[423345826,1780065080000,-695.28016072,0.00031408,7]
[423345831,1780065080000,-160.49733697,0.00031408,7]
[423345830,1780065080000,-170.45189406,0.00031408,7]
[423345823,1780065080000,-151.0,0.00031405,7]
[423345824,1780065080000,-700.90831371,0.00031408,7]
[423345827,1780065080000,-160.69199126,0.00031408,7]
[423345803,1780065080000,-726.8315098,0.00031384,7]
[423345819,1780065080000,-2318.0,0.000314,3]
[423345800,1780065080000,-796.42830105,0.00031384,7]
[423345799,1780065080000,-634.49126615,0.00031384,7]
[423345802,1780065080000,-522.34402998,0.00031384,7]
[423345834,1780065080000,-308.9980516,0.00031408,7]
[423345784,1780065080000,-406.19395241,0.00031384,7]
[423345787,1780065080000,-457.99628692,0.00031384,7]
[423345786,1780065080000,-612.09059583,0.00031384,7]
[423345788,1780065080000,-340.62168414,0.00031384,7]
[423345783,1780065080000,-160.42531781,0.00031384,7]
[423345782,1780065080000,-160.49731709,0.00031384,7]
[423345779,1780065080000,-150.08748288,0.00031384,7]
[423345780,1780065080000,-618.10849409,0.00031384,7]
[423345781,1780065080000,-660.56526917,0.00031384,7]
[423345790,1780065080000,-160.4253173,0.00031384,7]
[423345804,1780065080000,-835.34770017,0.00031384,7]
[423345792,1780065080000,-155.5235617,0.00031384,7]
[423345789,1780065080000,-160.42850854,0.00031384,7]
[423345794,1780065080000,-160.4253198,0.00031384,7]
[423345798,1780065080000,-613.76524063,0.00031384,7]
[423345796,1780065080000,-764.47911495,0.00031384,7]
[423345795,1780065080000,-506.07001486,0.00031384,7]
[423345793,1780065080000,-635.26213049,0.00031384,7]
[423345797,1780065080000,-827.17413021,0.00031384,5]
[423345801,1780065080000,-457.66138496,0.00031384,7]
[423345809,1780065080000,-709.41380059,0.00031384,7]
[423345808,1780065080000,-324.43114156,0.00031384,7]
[423345805,1780065080000,-648.14826849,0.00031384,7]
[423345791,1780065080000,-327.18449977,0.00031384,7]
[423345785,1780065080000,-213.04846433,0.00031384,7]
[423345832,1780065080000,-160.45909009,0.00031408,7]
[423345835,1780065080000,-499.09612419,0.00031408,7]
[423345863,1780065080000,-301.40472437,0.00031408,7]
[423345865,1780065080000,-160.42851735,0.00031408,7]
[423345866,1780065080000,-660.40691386,0.00031408,7]
[423345867,1780065080000,-160.42851659,0.00031408,7]
[423345868,1780065080000,-501.52436015,0.00031408,7]
[423345869,1780065080000,-170.14803788,0.00031408,7]
[423345871,1780065080000,-168.26811507,0.00031408,7]
[423345875,1780065080000,-704.07000549,0.00031408,2]
[423345873,1780065080000,-167.92382881,0.00031408,7]
[423345872,1780065080000,-168.79279335,0.00031408,2]
[423345874,1780065080000,-1294.31792467,0.00031408,7]
[423345855,1780065080000,-212.76995561,0.00031408,7]
[423345876,1780065080000,-168.84292047,0.00031408,7]
[423345884,1780065080000,-170.79684311,0.00031408,7]
[423345886,1780065080000,-315.36925289,0.00031408,7]
[423345885,1780065080000,-486.95905239,0.00031408,7]
[423345878,1780065080000,-165.55157232,0.00031408,7]
[423345887,1780065080000,-587.82795927,0.00031408,7]
[423345879,1780065080000,-161.5358857,0.00031408,7]
[423345880,1780065080000,-389.94863677,0.00031408,7]
[423345881,1780065080000,-157.42799772,0.00031408,7]
[423345883,1780065080000,-441.42006145,0.00031408,7]
[423345882,1780065080000,-164.41527313,0.00031408,7]
[423345836,1780065080000,-439.84777493,0.00031408,7]
[423345877,1780065080000,-449.8075737,0.00031408,7]
[423345862,1780065080000,-160.42531149,0.00031408,7]
[423345870,1780065080000,-308.75521843,0.00031408,7]
[423345859,1780065080000,-763.45237439,0.00031408,7]
[423345861,1780065080000,-160.42530055,0.00031408,7]
[423345843,1780065080000,-448.01293799,0.00031408,7]
[423345838,1780065080000,-160.35581611,0.00031408,7]
[423345837,1780065080000,-319.01564937,0.00031408,7]
[423345841,1780065080000,-449.99939243,0.00031408,7]
[423345839,1780065080000,-306.56643812,0.00031408,7]
[423345842,1780065080000,-584.46617492,0.00031408,7]
[423345840,1780065080000,-160.49736034,0.00031408,7]
[423345844,1780065080000,-329.67752506,0.00031408,7]
[423345846,1780065080000,-167.50753875,0.00031408,7]
[423345848,1780065080000,-411.50549021,0.00031408,7]
[423345847,1780065080000,-384.50021525,0.00031408,7]
[423345833,1780065080000,-402.80754317,0.00031408,7]
[423345845,1780065080000,-164.96870002,0.00031408,2]
[423345849,1780065080000,-408.96463085,0.00031408,7]
[423345864,1780065080000,-160.42852072,0.00031408,7]
[423345860,1780065080000,-800.19884499,0.00031408,7]
[423345856,1780065080000,-164.02260231,0.00031408,7]
[423345858,1780065080000,-720.9647159,0.00031408,7]
[423345857,1780065080000,-610.85184114,0.00031408,7]
[423345850,1780065080000,-561.87523418,0.00031408,2]
[423345853,1780065080000,-587.77991003,0.00031408,2]
[423345852,1780065080000,-346.46281349,0.00031408,7]
[423345851,1780065080000,-518.26482842,0.00031408,2]
[423345854,1780065080000,-222.12062325,0.00031408,7]
[423345932,1780065081000,-200.87364833,0.000315,2]
[423345918,1780065081000,-523.42570188,0.00031445,7]
[423345920,1780065081000,-555.81542163,0.00031445,2]
[423345916,1780065081000,-609.13872775,0.00031445,7]
[423345917,1780065081000,-166.20206057,0.00031445,7]
[423345915,1780065081000,-661.15135715,0.00031445,7]
[423345921,1780065081000,-301.55018014,0.00031445,7]
[423345922,1780065081000,-823.24237418,0.00031445,7]
[423345923,1780065081000,-301.5555004,0.00031445,7]
[423345933,1780065081000,-150.0,0.000315,2]
[423345924,1780065081000,-331.00823145,0.00031445,7]
[423345929,1780065081000,-350.0,0.00031479,4]
[423345927,1780065081000,-2318.0,0.00031458,3]
[423345926,1780065081000,-164.94811919,0.00031445,7]
[423345928,1780065081000,-2318.0,0.00031458,3]
[423345931,1780065081000,-3650.25,0.000315,7]
[423345930,1780065081000,-6580.74,0.000315,7]
[423345935,1780065081000,-4431.499608,0.000315,7]
[423345943,1780065081000,-1590.0,0.00031535,3]
[423345944,1780065081000,-188.44606373,0.00031578,2]
[423345945,1780065081000,-1590.0,0.00031646,3]
[423345936,1780065081000,-4431.499608,0.000315,7]
[423345919,1780065081000,-423.2260397,0.00031445,7]
[423345925,1780065081000,-708.05498156,0.00031445,7]
[423345912,1780065081000,-751.00760413,0.00031427,7]
[423345940,1780065081000,-1000.0,0.00031504,25]
[423345911,1780065081000,-342.74942695,0.00031427,7]
[423345897,1780065081000,-542.00010315,0.00031408,5]
[423345888,1780065081000,-695.56136862,0.00031408,7]
[423345898,1780065081000,-310.45099771,0.00031408,7]
[423345892,1780065081000,-453.38015755,0.00031408,7]
[423345889,1780065081000,-304.58981375,0.00031408,7]
[423345891,1780065081000,-708.35567077,0.00031408,7]
[423345890,1780065081000,-168.87012776,0.00031408,7]
[423345894,1780065081000,-680.18597765,0.00031408,7]
[423345896,1780065081000,-757.68947241,0.00031408,7]
[423345893,1780065081000,-160.49732895,0.00031408,7]
[423345895,1780065081000,-708.50755652,0.00031408,7]
[423345914,1780065081000,-20232.87095048,0.0003143,4]
[423345900,1780065081000,-430.04676054,0.00031408,7]
[423345899,1780065081000,-657.33416582,0.00031408,7]
[423345901,1780065081000,-688.72185044,0.00031408,7]
[423345902,1780065081000,-1369.44397967,0.00031408,7]
[423345907,1780065081000,-600.64699541,0.00031427,7]
[423345904,1780065081000,-660.09473194,0.00031427,7]
[423345906,1780065081000,-168.95311079,0.00031427,7]
[423345909,1780065081000,-161.87142922,0.00031427,7]
[423345903,1780065081000,-1487.61035645,0.00031408,7]
[423345905,1780065081000,-462.7893129,0.00031427,2]
[423345908,1780065081000,-798.8027429,0.00031427,7]
[423345913,1780065081000,-1000.0,0.00031428,4]
[423345910,1780065081000,-340.66294342,0.00031427,7]
[423345942,1780065081000,-1590.0,0.00031535,3]
[423345973,1780065081000,-219.0,0.00031814,30]
[423345938,1780065081000,-4431.499608,0.000315,7]
[423345979,1780065081000,-153.0,0.00031845,7]
[423345981,1780065081000,-1545.0,0.00031845,7]
[423345971,1780065081000,-352.0,0.00031814,30]
[423345970,1780065081000,-5486.0,0.00031802,30]
[423345972,1780065081000,-334.0,0.00031814,30]
[423345994,1780065081000,-794.07766312,0.00031978,7]
[423345978,1780065081000,-153.0,0.00031845,7]
[423345974,1780065081000,-878.0,0.00031823,30]
[423345976,1780065081000,-1545.0,0.00031845,7]